bitfinex-derivatives/quotes_ETHF0:USTF0_20260312
["timestamp","ask_amount","ask_price","bid_price","bid_amount"]
[1773324314725,1.11978198,2079.9,2078.9,1.36102093]
[1773324315024,1.12419462,2080.0,2078.9,1.36102093]
[1773324316030,0.0044956,2080.0,2079.1,4.13830528]
[1773324316224,0.0044956,2080.0,2079.2,1.36102093]
[1773324317219,1.12220911,2080.0,2079.2,1.36102093]
[1773324317418,1.12220911,2080.0,2078.9,0.00469174]
[1773324317419,1.11771351,2079.8,2079.0,1.36102093]
[1773324318032,1.11717425,2079.6,2078.9,0.00469174]
[1773324318226,1.11717425,2079.4,2078.6,1.36102093]
[1773324318424,1.11717425,2079.4,2078.4,1.36102093]
[1773324319027,1.13461015,2079.2,2078.4,1.36102093]
[1773324319325,1.13461015,2079.2,2078.4,0.00571252]
[1773324319525,1.13461015,2079.3,2078.4,1.36673345]
[1773324319725,1.13461015,2079.5,2078.4,1.36673345]
[1773324319928,1.37573015,2079.5,2078.4,1.36673345]
[1773324320126,1.37860015,2079.5,2078.4,1.36673345]
[1773324320526,1.37670015,2079.5,2078.4,1.36673345]
[1773324321428,1.375453,2079.7,2078.6,1.34372345]
[1773324322028,1.127483,2079.7,2078.6,1.34372345]
[1773324322230,1.12698043,2079.9,2078.6,1.34372345]
[1773324322728,1.12698043,2079.9,2078.8,1.34372345]
[1773324322929,6.9364956,2080.0,2078.5,1.34372345]
[1773324322930,1.36766043,2079.5,2078.5,1.34372345]
[1773324323327,1.12698043,2079.5,2078.5,1.34372345]
[1773324323730,1.37068043,2079.5,2078.5,1.34372345]
[1773324323929,1.14260849,2079.3,2078.5,1.34372345]
[1773324324233,8.31867513,2079.4,2078.5,1.34372345]
[1773324325230,8.31610513,2079.4,2078.5,1.34372345]
[1773324325628,1.39786348,2079.3,2078.5,1.34372345]
[1773324326029,1.39786348,2079.3,2078.4,0.00571252]
[1773324326234,1.4004466,2079.0,2078.1,1.34372345]
[1773324326431,1.1339266,2078.7,2077.7,1.34372345]
[1773324326728,1.3989066,2078.5,2077.7,1.34372345]
[1773324327334,1.40380572,2078.5,2077.7,1.34943558]
[1773324327635,1.40380572,2078.5,2077.7,0.00571213]
[1773324327836,0.00489912,2078.5,2077.7,1.34943558]
[1773324328430,1.41242286,2078.5,2077.7,1.34943558]
[1773324328633,1.40222286,2078.5,2077.7,1.34943558]
[1773324329135,1.42136562,2078.7,2077.7,1.34943558]
[1773324329332,1.15877562,2078.5,2077.7,1.09659558]
[1773324329634,1.39446973,2078.3,2077.1,1.34372345]
[1773324329930,8.32746973,2078.4,2077.1,1.34372345]
[1773324330129,1.39446973,2078.3,2077.1,1.34372345]
[1773324330538,0.00343153,2078.3,2077.1,1.34758502]
[1773324331033,1.39446973,2078.1,2077.1,1.34758502]
[1773324331830,1.39446973,2077.9,2077.1,1.34758502]
[1773324332032,1.64760973,2077.8,2077.1,1.34758502]
[1773324332232,1.39446973,2077.8,2077.1,0.00386157]
[1773324332435,1.39446973,2077.7,2076.2,1.34372345]
[1773324332634,1.39446973,2077.7,2076.3,1.58449345]
[1773324332938,1.39446973,2077.8,2076.6,1.34372345]
[1773324333432,6.933,2077.9,2076.7,1.58445345]
[1773324333835,1.39446973,2077.8,2076.7,1.58445345]
[1773324334138,6.933,2077.9,2076.7,1.58445345]
[1773324334338,8.32746973,2077.9,2076.7,1.58445345]
[1773324334636,8.32746973,2077.9,2076.8,1.34372345]
[1773324335136,1.39446973,2077.8,2076.8,1.34372345]
[1773324335436,6.933,2077.9,2076.8,1.34372345]
[1773324335636,0.00343153,2078.3,2077.2,1.34372345]
[1773324335831,1.39790126,2078.3,2077.2,1.34372345]
[1773324337435,1.39790126,2078.3,2077.3,1.34372345]
[1773324338339,0.00343153,2078.3,2077.3,1.34372345]
[1773324338635,0.00343153,2078.3,2077.5,1.34372345]
[1773324340336,1.63844126,2078.3,2077.5,1.34372345]
[1773324340531,8.57344126,2078.3,2077.3,1.34372345]
[1773324340733,1.39446973,2078.2,2077.3,1.34372345]
[1773324341741,1.63622973,2078.2,2077.3,1.34372345]
[1773324342942,1.65146973,2078.1,2077.3,1.34372345]
[1773324343242,1.65292973,2077.9,2077.0,1.34372345]
[1773324343634,1.68009558,2077.7,2076.7,1.37463512]
[1773324343845,1.41402558,2077.5,2076.7,1.37463512]
[1773324344141,1.68005558,2077.3,2076.6,0.00514928]
[1773324345443,1.41402558,2077.1,2075.8,1.37463512]
[1773324345635,1.41402558,2076.7,2076.0,1.37463512]
[1773324346134,6.936,2076.9,2076.0,1.37463512]
[1773324346341,8.59859849,2076.9,2076.0,1.37845398]
[1773324346541,1.66666558,2076.8,2076.0,1.37845398]
[1773324346846,1.65589558,2076.8,2076.0,1.37845398]
[1773324347143,7.18533,2076.7,2076.0,1.37845398]
[1773324347344,6.936,2076.7,2076.0,1.37845398]
[1773324347535,0.00596291,2076.9,2076.0,1.37845398]
[1773324347741,1.41402558,2077.3,2076.2,1.37463512]
[1773324348344,8.35102558,2077.8,2076.5,1.37463512]
[1773324348536,1.41402558,2077.8,2076.5,1.37463512]
[1773324348736,1.41402558,2077.8,2076.7,1.37463512]
[1773324348737,0.00599201,2077.8,2076.7,1.37463512]
[1773324348946,0.00599201,2077.8,2076.8,1.37463512]
[1773324350843,1.40755246,2077.8,2076.8,1.37463512]
[1773324351341,1.40156045,2077.5,2076.8,1.37463512]
[1773324351540,6.937,2077.6,2076.8,1.37463512]
[1773324351745,8.33856045,2077.6,2076.8,1.37463512]
[1773324351943,1.40156045,2077.5,2076.8,1.37463512]
[1773324352550,1.40156045,2077.4,2076.2,1.30987083]
[1773324353048,1.64220045,2077.5,2076.2,1.30987083]
[1773324353549,1.40156045,2077.4,2076.2,1.30987083]
[1773324353750,1.40156045,2077.4,2076.2,1.55625733]
[1773324354348,6.937,2077.6,2076.2,1.55625733]
[1773324354349,1.40156045,2077.1,2076.2,1.30987083]
[1773324354550,1.40156045,2076.9,2076.2,1.30987083]
[1773324354851,6.937,2077.0,2076.2,1.30987083]
[1773324355353,1.40156045,2076.9,2076.2,1.30987083]
[1773324355553,1.40156045,2077.2,2076.2,1.30987083]
[1773324355752,8.33856045,2077.2,2076.2,1.30987083]
[1773324355950,1.40156045,2077.1,2076.2,1.30987083]
[1773324356651,8.33956045,2077.1,2076.2,1.30987083]
[1773324357154,1.40156045,2077.0,2076.2,1.30987083]
[1773324359451,1.40156045,2077.1,2076.2,1.30987083]
[1773324360355,6.938,2077.2,2076.2,1.30987083]
[1773324360751,8.33956045,2077.2,2076.2,1.30987083]
[1773324361852,1.40156045,2077.1,2076.2,1.30987083]
[1773324362052,5.92197,2076.7,2075.4,7.28317756]
[1773324362353,6.938,2076.7,2075.3,1.30987083]
[1773324362550,6.938,2076.7,2075.5,1.30987083]
[1773324362749,1.40156045,2077.0,2075.7,1.30987083]
[1773324362951,1.40156045,2077.4,2076.1,1.30987083]
[1773324363155,1.40156045,2077.6,2076.3,1.30987083]
[1773324363455,1.40156045,2077.6,2076.5,1.30987083]
[1773324363753,1.40755246,2077.8,2076.5,1.30987083]
[1773324363961,1.40755246,2077.8,2076.7,1.30987083]
[1773324364255,0.00599201,2077.8,2076.7,1.30987083]
[1773324364559,1.40755246,2077.8,2076.7,1.30987083]
[1773324364759,0.1,2077.5,2076.7,1.30987083]
[1773324365759,0.00599201,2077.8,2076.9,1.30987083]
[1773324367963,1.40755246,2077.8,2076.9,1.30987083]
[1773324368657,0.00599201,2077.8,2076.9,1.30987083]
[1773324368853,1.40755246,2077.8,2076.9,1.30987083]
[1773324369053,0.00599201,2077.8,2076.9,1.30987083]
[1773324370562,1.40156045,2078.3,2076.9,1.30987083]
[1773324370764,1.40156045,2078.3,2077.1,1.30987083]
[1773324371060,1.40156045,2078.7,2077.1,1.30987083]
[1773324371255,1.40156045,2078.5,2077.1,1.30987083]
[1773324371456,1.40156045,2078.7,2077.5,1.30987083]
[1773324371656,0.00573477,2078.7,2077.6,1.30987083]
[1773324371858,0.00573477,2078.7,2077.6,1.31548757]
[1773324373474,1.40729522,2078.7,2077.6,1.31548757]
[1773324373973,1.40156045,2078.5,2077.6,1.31548757]
[1773324374463,1.40156045,2078.5,2077.3,1.30987083]
[1773324374665,1.40156045,2078.3,2077.0,1.30987083]
[1773324374874,8.33856045,2078.5,2077.0,1.30987083]
[1773324375172,1.40156045,2078.4,2077.2,1.30987083]
[1773324375572,1.40156045,2078.4,2077.2,1.31607372]
[1773324376467,6.937,2078.5,2077.2,1.31607372]
[1773324376468,1.40156045,2078.2,2077.2,1.31607372]
[1773324377066,1.40156045,2078.0,2077.2,0.00620289]
[1773324378470,1.64261045,2078.0,2077.2,0.00620289]
[1773324378668,1.40156045,2078.0,2077.2,0.00620289]
[1773324378870,1.64342045,2078.0,2077.2,0.00620289]
[1773324379070,1.64349045,2078.0,2077.2,0.00620289]
[1773324379975,1.64323045,2078.0,2077.2,0.00620289]
[1773324380276,1.64387045,2078.0,2077.2,0.00620289]
[1773324380871,1.42773616,2077.7,2076.9,1.4347812]
[1773324381477,1.66978616,2077.7,2076.9,1.4347812]
[1773324381871,1.66978616,2077.7,2076.9,1.44074866]
[1773324382571,1.42773616,2077.7,2076.9,1.44074866]
[1773324382776,1.67418616,2077.7,2076.9,1.44074866]
[1773324383078,1.67075616,2077.7,2076.9,1.44074866]
[1773324383466,8.36373616,2077.9,2076.9,1.44074866]
[1773324383671,1.42773616,2078.1,2076.9,1.44074866]
[1773324385167,1.42773616,2078.3,2077.1,1.4347812]
[1773324386272,1.42773616,2078.1,2077.1,1.4347812]
[1773324386478,1.42773616,2078.5,2077.1,1.4347812]
[1773324388276,1.42773616,2078.3,2077.1,1.4347812]
[1773324388873,0.24053,2078.4,2077.1,1.4347812]
[1773324389171,1.66826616,2078.4,2077.1,1.4347812]
[1773324390475,1.42773616,2078.0,2077.1,1.4347812]
[1773324391274,1.42773616,2078.4,2077.1,1.4347812]
[1773324391474,1.42773616,2078.4,2077.1,1.6754612]
[1773324392375,1.42773616,2078.4,2077.2,1.4347812]
[1773324392575,1.42773616,2078.4,2077.4,1.4347812]
[1773324393679,1.42773616,2078.6,2077.4,1.4347812]
[1773324393980,5.66085268,2078.5,2077.4,1.4347812]
[1773324394182,0.00573477,2078.7,2077.6,1.4347812]
[1773324394586,0.00573477,2078.7,2077.8,1.4347812]
[1773324394982,1.43347093,2078.7,2077.8,1.4347812]
[1773324395472,0.00573477,2078.7,2077.8,1.4347812]
[1773324396175,1.43347093,2078.7,2077.8,1.4347812]
[1773324396571,1.67397093,2078.7,2077.6,1.4347812]
[1773324397384,1.42773616,2078.5,2077.6,1.4347812]
[1773324398776,1.66866616,2078.5,2077.6,1.4347812]
[1773324398978,5.65789589,2078.4,2077.0,1.4347812]
[1773324399174,1.42773616,2078.3,2077.0,1.4347812]
[1773324399579,1.42773616,2078.3,2077.1,1.4347812]
[1773324399978,1.42773616,2078.5,2077.1,1.6754612]
[1773324400586,1.42773616,2078.3,2077.1,1.4347812]
[1773324401686,1.42773616,2078.6,2077.3,1.4347812]
[1773324401886,7.08582932,2078.5,2077.3,1.4347812]
[1773324402186,1.42773616,2078.5,2077.3,1.4347812]
[1773324402383,1.66826616,2078.5,2077.3,1.4347812]
[1773324404287,1.40188234,2078.3,2077.3,1.4347812]
[1773324405878,1.40188234,2078.1,2077.0,1.33497128]
[1773324406081,1.64289234,2077.9,2077.0,1.33497128]
[1773324406485,1.64574234,2077.5,2076.6,1.33497128]
[1773324406786,1.40188234,2077.3,2076.0,1.33497128]
[1773324407578,1.40188234,2077.3,2076.0,1.34094893]
[1773324408581,1.40188234,2077.3,2076.2,1.33497128]
[1773324410391,1.36456853,2077.1,2076.2,1.33497128]
[1773324410590,1.36885851,2077.1,2076.2,1.33497128]
[1773324412083,1.36885851,2077.1,2076.0,1.64321342]
[1773324413189,1.36456853,2076.9,2076.0,0.00597765]
[1773324413491,1.36456853,2076.5,2075.8,1.39491823]
[1773324413685,1.60720853,2076.5,2075.8,1.39491823]
[1773324413885,1.60756853,2076.5,2075.8,1.39491823]
[1773324414288,1.60756853,2076.5,2075.1,1.39491823]
[1773324414591,1.36456853,2076.3,2075.1,1.39945082]
[1773324415687,0.24071,2076.9,2075.3,1.39491823]
[1773324415688,1.36456853,2076.5,2075.3,1.39491823]
[1773324415890,1.36456853,2076.8,2075.3,1.39491823]
[1773324416085,1.36456853,2076.8,2075.5,1.39491823]
[1773324416394,1.36456853,2077.0,2075.7,1.39491823]
[1773324417484,1.36456853,2077.0,2075.9,1.39491823]
[1773324418792,1.36456853,2077.0,2076.0,1.39491823]
[1773324419591,1.36885851,2077.1,2076.0,1.39491823]
[1773324421489,1.60953851,2077.1,2076.0,1.39491823]
[1773324421795,1.36456853,2076.4,2075.6,1.39491823]
[1773324422288,1.36456853,2076.8,2075.6,1.63576823]
[1773324423087,1.36456853,2076.8,2075.7,1.39491823]
[1773324423388,1.36456853,2076.8,2075.1,5.93081259]
[1773324423389,1.36456853,2076.4,2075.1,1.39945082]
[1773324423590,1.36456853,2076.4,2075.3,1.39491823]
[1773324424090,1.36456853,2076.6,2075.4,1.63579823]
[1773324425093,1.36456853,2076.9,2075.4,1.63579823]
[1773324425992,0.00428998,2077.1,2076.0,1.39491823]
[1773324425993,1.36885851,2077.1,2076.0,1.39491823]
[1773324426496,1.36456853,2076.9,2076.0,1.39491823]
[1773324427295,1.60530853,2076.6,2075.3,1.39491823]
[1773324427696,1.36456853,2076.6,2075.3,1.63579823]
[1773324428096,1.36456853,2076.6,2075.4,6.939]
[1773324428397,1.36456853,2076.6,2075.5,1.39491823]
[1773324429693,1.36456853,2076.9,2075.5,1.39491823]
[1773324430395,1.36456853,2076.9,2075.7,1.39491823]
[1773324430795,1.36456853,2076.9,2075.9,1.39491823]
[1773324431484,1.36456853,2076.9,2076.1,1.39491823]
[1773324431689,1.36456853,2076.9,2075.8,1.39491823]
[1773324434998,1.60527853,2076.9,2075.8,1.39491823]
[1773324435192,1.60527853,2076.9,2075.4,1.39491823]
[1773324435193,1.36456853,2076.3,2075.4,1.39491823]
[1773324435395,1.36456853,2076.0,2075.2,1.39491823]
[1773324435691,1.36456853,2075.8,2075.1,0.00453259]
[1773324436102,1.36456853,2075.8,2075.1,1.39945082]
[1773324437097,5.36229068,2076.4,2075.1,1.39945082]
[1773324437299,1.36456853,2076.7,2075.5,1.39491823]
[1773324437997,1.36456853,2076.3,2075.5,1.39491823]
[1773324438695,1.36456853,2076.5,2075.5,1.39491823]
[1773324440594,1.60532853,2076.5,2075.5,1.39491823]
[1773324440798,1.38888203,2076.3,2075.5,1.39491823]
[1773324440995,1.38888203,2076.8,2075.5,1.63577823]
[1773324441187,1.38888203,2076.6,2075.5,1.63577823]
[1773324441394,1.38888203,2076.6,2075.5,1.33439344]
[1773324441395,1.62962203,2076.6,2075.5,1.33439344]
[1773324441593,1.38888203,2076.4,2075.5,1.33439344]
[1773324442898,1.62965203,2076.3,2075.5,1.33439344]
[1773324443904,1.38888203,2076.5,2075.5,1.33439344]
[1773324445300,1.38888203,2076.4,2075.5,1.33439344]
[1773324445699,1.62964203,2076.4,2075.5,1.33439344]
[1773324446597,1.38888203,2076.6,2075.5,1.33439344]
[1773324446996,1.38888203,2076.8,2075.7,1.33439344]
[1773324447202,5.69682269,2076.7,2075.7,1.33439344]
[1773324447403,1.38888203,2076.8,2075.7,1.33439344]
[1773324448403,1.38888203,2076.6,2075.7,1.33439344]
[1773324449110,1.38888203,2076.7,2075.7,1.33439344]
[1773324449407,1.38888203,2076.5,2075.7,1.33439344]
[1773324450807,1.38888203,2076.1,2075.4,1.33439344]
[1773324451312,1.38888203,2076.3,2075.4,1.33439344]
[1773324451504,1.38888203,2076.5,2075.4,1.33439344]
[1773324451704,1.38888203,2076.3,2075.4,1.33439344]
[1773324452503,1.62963203,2076.5,2075.4,1.33439344]
[1773324452703,5.70182624,2076.4,2075.4,1.33439344]
[1773324453305,1.38888203,2076.3,2075.4,1.33439344]
[1773324453501,1.38888203,2075.9,2075.1,1.33892603]
[1773324454509,0.24082,2076.0,2075.1,1.33892603]
[1773324454510,1.38888203,2075.7,2075.1,1.33892603]
[1773324455205,1.38888203,2075.7,2075.1,0.00453259]
[1773324455700,1.38888203,2075.5,2074.7,1.33439344]
[1773324456302,1.38888203,2075.7,2074.7,1.33439344]
[1773324456702,1.39255697,2075.7,2074.7,1.34062439]
[1773324456907,1.63340697,2075.7,2074.7,1.34062439]
[1773324457106,1.38888203,2075.5,2074.7,1.34062439]
[1773324457510,1.63340697,2075.7,2074.7,1.34062439]
[1773324457908,0.00367494,2075.7,2074.7,1.34062439]
[1773324458913,1.39255697,2075.7,2074.7,1.34062439]
[1773324459315,1.38888203,2075.5,2074.7,1.34062439]
[1773324460303,1.38888203,2075.6,2074.7,1.34062439]
[1773324461208,0.00367494,2075.7,2074.9,1.33439344]
[1773324461814,6.942,2076.1,2075.1,1.33439344]
[1773324462010,1.38888203,2076.4,2075.3,1.33439344]
[1773324462217,1.38888203,2076.8,2075.5,1.33439344]
[1773324462414,1.38888203,2076.8,2075.6,1.33439344]
[1773324462816,1.39282022,2076.8,2075.6,1.57524344]
[1773324463217,1.39282022,2076.8,2075.6,1.33439344]
[1773324464521,0.00393819,2076.8,2075.6,1.33439344]
[1773324465215,0.00393819,2076.8,2075.8,1.32413989]
[1773324466021,0.00393819,2076.8,2076.0,1.32413989]
[1773324466324,0.00393819,2076.8,2076.2,1.32413989]
[1773324466524,0.00393819,2076.8,2076.2,1.32948522]
[1773324467326,1.27044008,2077.3,2076.2,1.32948522]
[1773324468220,1.27538359,2077.3,2076.2,1.32948522]
[1773324468723,0.00494351,2077.3,2076.4,1.32413989]
[1773324468921,1.27538359,2077.3,2076.4,1.32413989]
[1773324470027,0.00494351,2077.3,2076.4,1.32413989]
[1773324470420,1.31754323,2077.3,2076.4,1.32413989]
[1773324474418,1.31259972,2077.0,2076.2,1.26579137]
[1773324475424,1.31259972,2077.0,2076.2,0.00534533]
[1773324475924,1.31259972,2076.8,2076.2,0.00534533]
[1773324476528,1.31259972,2076.8,2076.0,1.26044604]
[1773324476722,1.31259972,2076.7,2075.8,1.26044604]
[1773324477426,1.31259972,2076.7,2075.8,1.2664641]
[1773324477824,6.94,2077.2,2075.8,1.2664641]
[1773324477825,1.31259972,2076.3,2075.8,0.00601806]
[1773324478023,1.31259972,2076.3,2075.5,1.26044604]
[1773324479028,1.31259972,2076.3,2075.5,0.00550062]
[1773324479426,1.31259972,2076.1,2075.2,1.26044604]
[1773324480327,1.31259972,2076.1,2075.2,1.26458193]
[1773324480726,1.31259972,2075.8,2075.2,0.00413589]
[1773324481024,0.00364951,2075.8,2075.2,1.26458193]
[1773324481327,1.31259972,2076.3,2075.2,1.26458193]
[1773324482430,1.31673454,2076.3,2075.2,1.26458193]
[1773324482726,0.00413482,2076.3,2075.4,1.26044604]
[1773324483124,1.31673454,2076.3,2075.4,1.26044604]
[1773324483525,0.00413482,2076.3,2075.4,1.26044604]
[1773324483832,1.31259972,2076.8,2075.6,1.26044604]
[1773324484134,1.31259972,2076.6,2075.6,1.26044604]
[1773324484531,1.31259972,2076.4,2075.6,1.26044604]
[1773324484832,1.31693182,2076.4,2075.6,1.26044604]
[1773324487934,1.31259972,2075.8,2074.9,1.26044604]
[1773324488429,1.31259972,2075.6,2074.9,1.26044604]
[1773324488633,1.31259972,2075.6,2074.7,1.26044604]
[1773324489133,1.31259972,2075.6,2074.7,1.26517259]
[1773324489532,1.31259972,2075.3,2074.4,1.26044604]
[1773324489731,1.31259972,2075.3,2074.2,1.26044604]
[1773324489933,1.55351972,2075.1,2074.2,1.26044604]
[1773324490438,1.31259972,2075.5,2074.2,1.26044604]
[1773324490636,1.31259972,2075.3,2074.3,1.26044604]
[1773324491426,1.31259972,2075.1,2074.2,0.00445122]
[1773324491835,1.31259972,2075.1,2074.2,1.26489726]
[1773324493936,1.31259972,2075.3,2074.2,1.26489726]
[1773324494531,1.55349972,2075.3,2074.2,0.00445122]
[1773324494736,1.55349972,2075.3,2074.2,1.26489726]
[1773324495836,1.31259972,2075.3,2074.2,1.26489726]
[1773324497236,1.55348972,2075.3,2074.2,1.26489726]
[1773324498235,1.31259972,2075.0,2074.2,0.00445122]
[1773324499236,1.31259972,2075.0,2074.2,1.26489726]
[1773324499933,1.55435972,2075.0,2074.2,1.26489726]
[1773324500136,1.31259972,2075.0,2074.2,1.26489726]
[1773324500639,1.17912862,2075.2,2074.2,1.26489726]
[1773324500940,1.17912862,2075.5,2074.2,1.26489726]
[1773324501740,1.17912862,2075.3,2074.2,1.26489726]
[1773324502535,1.17912862,2075.5,2074.4,1.15944658]
[1773324503133,1.41999862,2075.5,2074.4,1.15944658]
[1773324504742,1.17912862,2075.5,2074.4,1.15944658]
[1773324505044,1.17912862,2075.9,2074.6,1.15944658]
[1773324505342,1.17912862,2076.2,2074.8,1.15944658]
[1773324505547,1.17912862,2076.2,2075.0,1.15944658]
[1773324506342,1.17912862,2076.0,2075.0,1.15944658]
[1773324507043,1.17912862,2076.2,2075.0,1.15944658]
[1773324508242,1.18346072,2076.4,2075.2,1.15944658]
[1773324509736,0.0043321,2076.4,2075.2,1.15944658]
[1773324510145,1.18346072,2076.4,2075.2,1.15944658]
[1773324510547,0.0043321,2076.4,2075.3,1.15944658]
[1773324511350,1.17912862,2076.9,2075.5,1.15944658]
[1773324512450,1.18294866,2076.9,2075.5,1.15944658]
[1773324513153,1.17912862,2076.7,2075.5,1.15944658]
[1773324513353,1.17912862,2076.7,2074.8,7.86524362]
[1773324513354,1.17912862,2076.6,2075.0,1.15944658]
[1773324513549,1.17912862,2076.5,2075.0,1.15944658]
[1773324514356,1.17912862,2076.5,2075.1,1.40035658]
[1773324514750,1.17912862,2076.5,2075.3,1.15944658]
[1773324517651,1.17912862,2076.5,2075.4,1.15944658]
[1773324518759,1.17912862,2076.3,2075.4,1.15944658]
[1773324518961,1.17912862,2076.1,2075.1,1.15944658]
[1773324519360,1.17912862,2075.9,2074.9,1.15944658]
[1773324519654,0.24083,2075.8,2074.9,1.15944658]
[1773324519861,1.17912862,2075.7,2074.9,1.15944658]
[1773324520258,1.17912862,2076.2,2074.9,1.15944658]
[1773324520658,1.17912862,2076.0,2074.9,1.15944658]
[1773324521162,1.17912862,2075.8,2074.9,1.15944658]
[1773324521362,1.17912862,2075.6,2074.6,1.15944658]
[1773324522861,8.70693952,2076.2,2074.1,6.942]
[1773324522862,1.17912862,2075.2,2074.4,1.39525073]
[1773324523057,1.17912862,2075.0,2074.4,1.39525073]
[1773324523262,0.00366723,2075.0,2074.4,1.39525073]
[1773324523462,1.11724563,2075.0,2074.4,1.15944658]
[1773324524859,1.11724563,2075.0,2074.2,1.21690855]
[1773324525264,1.11724563,2075.0,2074.2,0.00445122]
[1773324525460,1.11724563,2075.0,2074.2,1.21690855]
[1773324526263,1.11724563,2075.0,2074.2,0.00445122]
[1773324527166,1.1135784,2074.8,2073.9,1.21245733]
[1773324527358,1.1135784,2074.8,2073.8,0.23698122]
[1773324527563,1.1135784,2074.8,2073.8,1.21245733]
[1773324527763,1.1135784,2074.6,2073.4,1.21245733]
[1773324528269,1.1135784,2074.9,2073.4,1.216202]
[1773324528467,1.1135784,2074.9,2073.6,1.21245733]
[1773324528669,1.1135784,2074.9,2073.8,1.21245733]
[1773324529472,0.00366723,2075.0,2073.8,1.21245733]
[1773324530473,0.00366723,2075.0,2073.4,7.62625994]
[1773324530474,0.00366723,2075.0,2074.0,1.09929947]
[1773324530669,0.00366723,2075.0,2074.1,1.09929947]
[1773324531373,1.15521156,2075.6,2074.3,1.09929947]
[1773324532569,1.15914556,2075.6,2074.3,1.09929947]
[1773324532770,1.15914556,2075.6,2074.5,1.09929947]
[1773324533670,1.15914556,2075.6,2074.5,1.34076947]
[1773324533872,0.003934,2075.6,2074.7,1.34305947]
[1773324534171,1.15914556,2075.6,2074.7,1.09929947]
[1773324534367,0.003934,2075.6,2074.7,1.34386947]
[1773324535472,0.003934,2075.6,2074.7,1.34708947]
[1773324535772,0.003934,2075.6,2074.9,1.09929947]
[1773324535969,1.39600156,2076.2,2074.9,1.35762947]
[1773324536267,1.39600156,2076.2,2074.9,1.34240947]
[1773324536668,1.39600156,2076.2,2074.9,1.09929947]
[1773324536972,1.40141938,2076.2,2074.9,1.34931064]
[1773324537167,1.40141938,2076.2,2074.9,1.10532064]
[1773324537467,1.40141938,2076.2,2075.0,1.09929947]
[1773324540169,1.16062938,2076.2,2075.0,1.09929947]
[1773324540370,1.40141938,2076.2,2075.0,1.09929947]
[1773324542374,1.15521156,2075.7,2074.9,0.00602117]
[1773324542574,1.15521156,2075.7,2074.9,1.10532064]
[1773324542777,1.15521156,2076.1,2074.9,1.10532064]
[1773324542978,1.15521156,2076.1,2075.1,1.09929947]
[1773324543775,0.00541782,2076.2,2075.1,1.09929947]
[1773324543976,1.16062938,2076.2,2075.1,1.09929947]
[1773324545273,1.15521156,2075.8,2074.9,0.00602117]
[1773324545478,1.15521156,2075.4,2074.1,1.09929947]
[1773324546482,3.94234054,2075.0,2074.1,1.10453412]
[1773324546677,1.15521156,2074.9,2074.1,0.00523465]
[1773324546877,1.15521156,2074.9,2074.1,1.10453412]
[1773324547782,1.15521156,2075.2,2074.1,1.10453412]
[1773324548282,1.15521156,2074.9,2074.1,0.00523465]
[1773324548979,1.15521156,2074.9,2074.1,1.10453412]
[1773324549278,1.15521156,2075.1,2074.1,1.10453412]
[1773324549680,1.15521156,2075.3,2074.1,1.10453412]
[1773324549871,1.15521156,2075.3,2074.3,1.09929947]
[1773324550071,1.15521156,2075.6,2074.3,1.09929947]
[1773324550283,1.15521156,2075.8,2074.5,1.09929947]
[1773324550875,1.15521156,2075.8,2074.7,1.09929947]
[1773324551182,3.0333368,2076.2,2074.6,0.24097]
[1773324551183,1.16062938,2076.2,2075.1,1.09929947]
[1773324552280,0.00541782,2076.2,2075.1,1.09929947]
[1773324552671,1.16062938,2076.2,2075.1,1.09929947]
[1773324553481,0.00541782,2076.2,2075.3,1.09929947]
[1773324554677,0.00541782,2076.2,2075.3,1.34263947]
[1773324555079,0.00541782,2076.2,2075.3,1.09929947]
[1773324555277,1.16062938,2076.2,2075.3,1.34039947]
[1773324555477,0.00541782,2076.2,2075.3,1.34345947]
[1773324555882,0.00541782,2076.2,2075.3,1.34439947]
[1773324556891,0.00541782,2076.2,2075.3,1.34567947]
[1773324557490,0.00541782,2076.2,2075.3,1.34110947]
[1773324558587,0.00541782,2076.2,2075.5,1.35847947]
[1773324559494,0.00541782,2076.2,2075.7,1.35099947]
[1773324559793,0.00541782,2076.2,2075.7,1.35569032]
[1773324559988,1.16062938,2076.2,2075.7,1.10399032]
[1773324560394,1.16062938,2076.2,2075.7,1.34730032]
[1773324560591,1.16062938,2076.2,2075.7,1.35207032]
[1773324560791,0.00541782,2076.2,2075.7,1.35207032]
[1773324560991,0.00541782,2076.2,2075.7,1.10399032]
[1773324561290,1.0981209,2076.2,2075.7,0.00469085]
[1773324561493,1.0981209,2076.2,2075.7,1.13057287]
[1773324561696,0.00541782,2076.2,2075.7,1.13057287]
[1773324561891,1.0981209,2076.2,2075.7,1.13057287]
[1773324562188,1.0981209,2076.2,2075.0,40.8]
[1773324562189,1.0981209,2076.2,2075.5,1.12588202]
[1773324562494,1.0981209,2076.2,2075.1,1.12588202]
[1773324563298,1.0981209,2076.2,2075.1,1.12995273]
[1773324565698,1.0981209,2076.2,2075.1,1.36967635]
[1773324567001,1.0981209,2076.2,2075.3,1.12588202]
[1773324567497,0.00541782,2076.2,2075.3,1.12588202]
[1773324568199,0.00541782,2076.2,2075.1,0.24379433]
[1773324568200,0.00541782,2076.2,2075.5,1.12588202]
[1773324568391,0.00541782,2076.2,2075.6,1.12588202]
[1773324569596,1.0981209,2076.2,2075.6,1.12588202]
[1773324570602,0.00541782,2076.2,2075.6,1.12588202]
[1773324571098,1.0981209,2076.2,2075.2,1.12588202]
[1773324571295,1.3389109,2076.2,2075.2,6.942]
[1773324571495,1.3389109,2076.2,2075.3,1.12588202]
[1773324572204,1.0981209,2076.2,2075.3,1.12588202]
[1773324577315,1.0981209,2076.2,2075.1,1.36967635]
[1773324577914,3.87983206,2076.0,2075.1,0.00407071]
[1773324578114,3.87983206,2076.0,2075.0,1.12588202]
[1773324578115,1.33352308,2075.9,2075.0,1.12588202]
[1773324578910,1.09270308,2075.9,2075.0,1.12588202]
[1773324579117,0.00541782,2076.2,2075.1,1.12588202]
[1773324579315,0.00541782,2076.2,2075.3,1.12588202]
[1773324579518,1.0981209,2076.2,2075.4,1.12588202]
[1773324581115,0.00541782,2076.2,2075.4,1.12588202]
[1773324581811,1.0981209,2076.2,2075.4,1.12588202]
[1773324582014,5.70030118,2076.5,2075.6,1.12588202]
[1773324582214,1.09898542,2077.2,2076.3,0.05137344]
[1773324582414,3.02770898,2078.0,2076.3,0.05137344]
[1773324582415,1.09898542,2077.4,2076.5,0.05137344]
[1773324583013,1.10267569,2077.4,2076.5,0.05497577]
[1773324586614,1.10267569,2077.4,2076.5,0.00360233]
[1773324587918,1.10267569,2077.4,2076.5,0.246872]
[1773324588618,1.23249601,2077.2,2076.5,0.00360233]
[1773324588818,1.23249601,2077.2,2075.6,3.02796898]
[1773324588819,1.23249601,2077.2,2075.8,5.90169459]
[1773324589021,1.23069484,2076.9,2075.9,6.94]
[1773324589915,1.23069484,2076.9,2075.9,6.94595245]
[1773324590213,1.23069484,2076.9,2075.9,0.00595245]
[1773324591624,1.22793887,2076.6,2075.9,0.00595245]
[1773324591819,1.22496265,2076.3,2075.1,6.94]
[1773324592717,1.22496265,2076.3,2075.1,0.00578888]
[1773324592925,9.95500605,2076.9,2075.1,0.00578888]